bitfinex/quotes_ETHUSD_20240721
["timestamp","ask_amount","ask_price","bid_price","bid_amount"]
[1721579343148,3.0,3501.1,3500.2,2.85692]
[1721579343453,0.07628499,3501.0,3500.1,5.35475]
[1721579344285,0.07628499,3501.0,3500.2,2.85691]
[1721579344455,2.85633,3501.0,3500.2,2.85691]
[1721579344790,3.07633912,3500.9,3500.2,2.85691]
[1721579346453,5.93279912,3500.9,3500.1,2.4977]
[1721579347298,2.85649,3500.8,3500.1,2.4977]
[1721579347591,3.0,3500.7,3500.1,2.4977]
[1721579347749,3.07633912,3500.7,3500.1,2.4977]
[1721579348881,5.93290912,3500.7,3500.1,2.4977]
[1721579350157,5.93290912,3500.7,3500.0,7.25]
[1721579350158,5.71412,3500.1,3500.0,7.25]
[1721579350501,2.85731,3499.8,3499.5,19.73]
[1721579350677,2.85714,3500.0,3499.3,19.73]
[1721579350678,2.85742,3499.7,3499.3,19.73]
[1721579350851,2.85742,3499.7,3499.0,19.73]
[1721579351295,3.0,3499.9,3499.0,19.73]
[1721579351496,0.07633619,3499.8,3499.0,22.58789]
[1721579351790,2.85736,3499.8,3499.0,22.58789]
[1721579352191,0.07623082,3499.7,3499.0,22.58789]
[1721579352349,2.85739,3499.7,3499.0,22.58789]
[1721579352552,5.85724,3499.9,3499.0,22.58789]
[1721579352784,0.07623082,3499.6,3499.0,22.58789]
[1721579352991,2.85731,3499.8,3499.0,22.58789]
[1721579353194,2.85738,3499.7,3499.0,22.58789]
[1721579353348,2.93361082,3499.7,3499.0,19.73]
[1721579353553,5.85723,3499.9,3499.0,19.73]
[1721579353751,0.07623082,3499.6,3499.0,19.73]
[1721579353984,5.85723,3499.9,3499.0,19.73]
[1721579354165,0.07623082,3499.5,3499.0,19.73]
[1721579354462,2.85744,3499.7,3499.0,19.73]
[1721579354715,0.07623082,3499.6,3499.0,19.73]
[1721579355392,2.85744,3499.7,3498.9,2.85803]
[1721579355603,0.07623082,3499.5,3498.8,9.7477]
[1721579355806,2.85731,3499.8,3498.8,9.7477]
[1721579355807,2.85748,3499.6,3498.8,9.7477]
[1721579356023,2.85748,3499.6,3498.8,12.60581]
[1721579356818,2.85731,3499.8,3498.9,2.85804]
[1721579357029,2.85715,3500.0,3498.9,2.85804]
[1721579357030,2.8574,3499.7,3498.9,2.85804]
[1721579357524,0.07623082,3499.6,3499.0,2.85795]
[1721579357739,0.07623082,3499.6,3499.3,2.8577]
[1721579358033,3.44844148,3500.1,3499.4,0.28577]
[1721579358034,3.0,3500.0,3499.4,0.28577]
[1721579358191,3.0,3500.0,3499.3,2.8577]
[1721579358192,0.07622792,3499.5,3499.3,2.8577]
[1721579358377,3.0,3500.0,3499.3,2.8577]
[1721579358577,0.07622792,3499.4,3499.3,2.8577]
[1721579358816,3.0,3500.0,3499.3,2.8577]
[1721579359107,2.85722,3499.9,3499.1,2.85786]
[1721579359417,2.93344792,3499.9,3499.2,0.517476]
[1721579360413,0.07622792,3499.9,3499.3,2.85771]
[1721579360784,0.07622792,3499.9,3499.2,0.517476]
[1721579360986,0.07622792,3499.9,3499.2,3.375186]
[1721579361185,0.07622792,3499.9,3499.3,0.32419401]
[1721579361820,0.07622792,3499.9,3499.3,3.18186401]
[1721579362141,0.07622792,3499.9,3499.3,0.32419401]
[1721579362433,0.07622792,3499.9,3499.5,2.85754]
[1721579362791,0.59135148,3500.1,3499.5,2.85754]
[1721579363095,0.07618985,3499.8,3499.3,3.18186401]
[1721579363425,0.07618985,3499.7,3499.3,3.18186401]
[1721579363627,0.07618985,3499.7,3499.1,2.85782]
[1721579363824,2.85722,3499.9,3499.1,2.85782]
[1721579363996,0.07618985,3499.6,3499.1,2.85782]
[1721579364322,0.07622351,3499.5,3499.2,2.85777]
[1721579364527,0.8869722,3500.1,3499.2,2.85777]
[1721579364528,0.59135148,3499.8,3499.2,2.85777]
[1721579364727,0.07622351,3499.4,3499.2,2.85777]
[1721579364925,0.59135148,3499.8,3499.2,2.85777]
[1721579365106,0.07622351,3499.3,3499.2,2.85777]
[1721579365304,3.44864148,3499.9,3499.0,5.17484]
[1721579365501,0.66757499,3499.8,3499.1,2.85787]
[1721579366134,0.66757499,3499.8,3499.0,2.3169]
[1721579366302,0.59135148,3499.7,3499.0,2.3169]
[1721579366816,0.07620305,3499.6,3499.0,2.3169]
[1721579367401,2.85761,3499.5,3499.0,2.3169]
[1721579367817,0.07620305,3499.4,3499.0,2.3169]
[1721579368124,3.44874148,3499.7,3499.0,2.3169]
[1721579368547,2.85748,3499.6,3499.0,2.3169]
[1721579368849,2.93368305,3499.6,3499.0,2.3169]
[1721579369141,2.85756,3499.5,3499.0,2.3169]
[1721579369341,2.85755,3499.5,3498.8,7.25]
[1721579369547,2.85777,3499.3,3498.8,7.25]
[1721579369753,2.93385305,3499.4,3498.8,7.25]
[1721579370042,0.07618108,3499.2,3498.8,7.25]
[1721579370343,2.85773,3499.3,3498.8,7.25]
[1721579370543,0.07618108,3499.1,3498.8,7.25]
[1721579370842,2.8578,3499.2,3498.8,7.25]
[1721579371758,0.07608302,3499.1,3498.8,7.25]
[1721579372819,0.59135148,3499.4,3498.8,7.25]
[1721579373155,3.44896148,3499.5,3498.7,2.85818]
[1721579373451,0.0760303,3499.3,3498.7,2.85818]
[1721579373652,3.44896148,3499.5,3498.7,2.85818]
[1721579373653,0.07604055,3499.4,3498.7,2.85818]
[1721579373843,3.44896148,3499.5,3498.7,2.85818]
[1721579374154,0.07604055,3499.3,3498.8,2.85811]
[1721579374358,0.07602885,3499.4,3498.8,2.85811]
[1721579374721,6.44885148,3499.6,3498.8,2.85811]
[1721579375052,0.07602885,3499.3,3498.8,2.85811]
[1721579375347,6.44885148,3499.6,3498.6,2.85827]
[1721579375348,2.85757,3499.5,3498.6,2.85827]
[1721579375553,0.07603763,3499.2,3498.7,2.85819]
[1721579375756,2.85757,3499.5,3498.7,2.85819]
[1721579375961,0.07603763,3499.1,3498.7,2.85819]
[1721579376118,2.85757,3499.5,3498.7,2.85819]
[1721579376518,0.07603763,3499.4,3498.7,2.85819]
[1721579379226,0.07603763,3499.4,3498.9,2.85798]
[1721579379426,3.59135148,3499.6,3498.9,2.85798]
[1721579379731,0.07603471,3499.3,3498.9,2.85798]
[1721579379926,0.07603471,3499.5,3498.9,2.85798]
[1721579380334,0.07603471,3499.4,3498.9,2.85798]
[1721579380557,3.59135148,3499.6,3498.9,2.85798]
[1721579380558,3.0,3499.6,3498.9,2.85798]
[1721579381343,0.07588311,3499.5,3498.9,2.85798]
[1721579381940,0.07588311,3499.5,3499.1,2.85781]
[1721579382633,3.0,3499.7,3499.1,2.85781]
[1721579382838,0.07590507,3499.4,3499.1,2.85781]
[1721579383022,3.59135148,3499.8,3499.1,2.85781]
[1721579383227,0.07591971,3499.3,3499.1,2.85781]
[1721579383565,3.59135148,3499.8,3499.1,2.85781]
[1721579383764,3.59135148,3499.8,3499.0,2.3318]
[1721579383765,0.07591971,3499.2,3499.0,5.18975]
[1721579383988,0.59135148,3499.6,3499.0,5.18975]
[1721579384137,0.59135148,3499.7,3499.1,2.85787]
[1721579386179,5.85732,3499.8,3499.1,2.85787]
[1721579386331,0.59498644,3499.7,3499.0,2.3318]
[1721579387195,0.07591678,3499.6,3499.0,2.3318]
[1721579387963,3.07591678,3499.6,3499.0,2.3318]
[1721579388334,2.85755,3499.5,3498.8,2.85811]
[1721579388531,2.85755,3499.5,3498.7,2.8582]
[1721579388764,2.933558,3499.4,3498.7,2.8582]
[1721579389562,2.85772,3499.3,3498.6,2.3318]
[1721579389768,2.93362507,3499.3,3498.6,2.3318]
[1721579390281,1.18323258,3499.3,3498.4,7.25]
[1721579390565,3.07590507,3499.3,3498.4,7.25]
[1721579390778,2.57768259,3499.4,3498.4,7.25]
[1721579390979,3.55,3499.3,3498.4,7.25]
[1721579391672,2.85829,3498.6,3498.4,7.25]
[1721579391827,2.85829,3498.6,3498.2,19.73]
[1721579392531,5.14023,3498.8,3498.2,19.73]
[1721579392831,0.07573375,3498.5,3498.2,22.58861]
[1721579393031,3.0,3498.9,3498.2,22.58861]
[1721579393231,0.07568839,3498.4,3498.3,2.85851]
[1721579393494,3.0,3499.0,3498.3,2.85851]
[1721579393885,0.07568839,3498.9,3498.3,2.85851]
[1721579395301,0.07568839,3498.9,3498.7,2.85819]
[1721579395507,0.07568839,3498.9,3498.8,8.387059]
[1721579395710,3.74979966,3499.8,3499.1,2.85786]
[1721579396067,0.07572646,3499.6,3499.1,2.85786]
[1721579396287,3.74979966,3499.8,3499.1,2.85786]
[1721579397102,0.89247966,3499.8,3499.1,2.85786]
[1721579397505,0.07587287,3499.6,3499.1,2.85786]
[1721579398799,0.67085931,3499.6,3498.8,22.115]
[1721579398999,0.59498644,3499.5,3499.0,2.85795]
[1721579399215,0.67087687,3499.5,3499.0,2.85795]
[1721579399911,0.07589043,3499.5,3499.0,2.85795]
[1721579400267,0.07589043,3499.5,3498.8,5.24307]
[1721579400465,0.67087687,3499.5,3498.7,7.25]
[1721579400702,3.45269644,3499.3,3498.7,7.25]
[1721579401505,2.85796,3499.0,3498.7,7.25]
[1721579401677,0.59498644,3499.0,3498.5,22.115]
[1721579402112,3.45286644,3499.1,3498.5,22.115]
[1721579402884,2.85807,3498.9,3498.2,7.25]
[1721579403203,0.55,3498.8,3498.2,7.25]
[1721579403416,3.40817,3498.8,3498.2,7.25]
[1721579403568,0.59498644,3498.9,3498.2,7.25]
[1721579403774,0.59498644,3499.1,3498.3,2.85852]
[1721579404116,3.45286644,3499.1,3498.3,2.85852]
[1721579405104,3.45286644,3499.1,3498.4,2.85842]
[1721579406100,0.59498644,3499.1,3498.4,2.85842]
[1721579406304,0.59498644,3499.1,3498.6,2.85827]
[1721579406508,0.59498644,3499.1,3498.7,2.85819]
[1721579406713,0.59498644,3499.1,3498.8,5.31861]
[1721579407020,0.59498644,3499.3,3498.8,5.31861]
[1721579407174,0.59498644,3499.3,3498.9,2.85803]
[1721579407775,0.59498644,3499.3,3498.8,2.4605]
[1721579407975,0.59498644,3499.3,3498.8,5.3186]
[1721579408198,0.59498644,3499.3,3498.8,2.4605]
[1721579408405,0.59498644,3499.3,3498.8,2.70655]
[1721579408677,0.59498644,3499.4,3499.0,2.85794]
[1721579408873,0.59498644,3499.4,3498.8,2.70655]
[1721579408874,0.59498644,3499.4,3498.8,2.4605]
[1721579409091,0.07589043,3499.5,3499.0,2.85795]
[1721579409298,0.07589043,3499.5,3499.3,2.8577]
[1721579411072,0.07589043,3499.5,3499.1,2.85786]
[1721579411273,0.07589043,3499.5,3498.8,5.31862]
[1721579411473,0.67087687,3499.5,3498.8,5.31862]
[1721579411704,0.67087687,3499.5,3498.4,1.49077822]
[1721579411705,3.45262644,3499.4,3498.6,2.85828]
[1721579411879,0.59498644,3499.2,3498.6,2.85828]
[1721579412083,0.59498644,3499.1,3498.7,2.85819]
[1721579412472,0.59498644,3499.2,3498.7,2.85819]
[1721579413075,0.59498644,3499.1,3498.7,2.85819]
[1721579413277,0.59498644,3499.1,3498.5,2.85831]
[1721579413480,3.45294644,3499.0,3498.2,7.25]
[1721579413680,2.85813,3498.8,3498.2,7.25]
[1721579413917,3.45311644,3498.8,3498.2,7.25]
[1721579414482,0.59498644,3498.8,3498.2,10.10858]
[1721579415180,0.59498644,3498.9,3498.2,10.10858]
[1721579415382,0.55,3498.8,3498.2,10.10858]
[1721579415584,1.22080806,3498.8,3498.2,10.10858]
[1721579415980,0.62582162,3498.8,3498.2,10.10858]
[1721579416179,0.62582162,3498.8,3498.4,2.85842]
[1721579416502,0.62582162,3498.8,3498.5,2.85834]
[1721579417296,0.62582162,3498.8,3498.7,2.8582]
[1721579417297,0.07582162,3498.8,3498.7,2.8582]
[1721579417592,0.59498644,3499.2,3498.7,5.2942]
[1721579417791,0.07573815,3498.8,3498.7,5.2942]
[1721579418015,0.59498644,3499.2,3498.7,5.2942]
[1721579418317,0.07573815,3499.1,3498.7,5.2942]
[1721579418886,0.67072459,3499.1,3498.7,5.2942]
[1721579419505,0.67072459,3499.1,3498.5,2.85835]
[1721579419506,0.59498644,3499.0,3498.5,2.85835]
[1721579419738,0.59498644,3498.9,3498.3,2.85851]
[1721579419894,0.59498644,3498.9,3498.2,7.25]
[1721579419895,3.45302644,3498.9,3498.2,7.25]
[1721579420238,3.45319644,3498.7,3498.2,7.25]
[1721579420778,0.07576598,3498.6,3498.2,7.25]
[1721579422616,4.00310644,3498.8,3498.2,7.25]
[1721579422816,0.07573231,3498.5,3498.2,7.25]
[1721579422980,4.00310644,3498.8,3498.2,7.25]
[1721579423180,0.07571328,3498.4,3498.2,7.25]
[1721579423417,4.00310644,3498.8,3498.2,7.25]
[1721579423813,0.07571328,3498.7,3498.1,2.85864]
[1721579426429,0.07571328,3498.7,3498.0,19.73]
[1721579426430,0.07571328,3498.7,3498.2,2.8586]
[1721579427107,0.67069972,3498.7,3498.2,2.8586]
[1721579427418,0.07571328,3498.7,3498.2,2.8586]
[1721579428791,0.67069972,3498.7,3498.2,2.8586]
[1721579429013,0.07571328,3498.7,3498.2,2.8586]
[1721579429405,0.07571328,3498.7,3498.0,22.5887]
[1721579429608,0.67069972,3498.7,3498.0,2.8587]
[1721579429920,1.46783166,3498.7,3498.0,2.8587]
[1721579431594,1.46783166,3498.7,3497.9,2.436]
[1721579431795,1.46783166,3498.7,3497.8,7.25]
[1721579431796,3.02368644,3498.5,3497.8,7.25]
[1721579432016,3.45349644,3498.4,3497.8,7.25]
[1721579432243,1.55828305,3498.3,3497.8,7.25]
[1721579432432,0.96329661,3498.3,3497.8,7.25]
[1721579432935,0.07568252,3498.2,3497.8,7.25]
[1721579433326,3.82183661,3498.3,3497.8,7.25]
[1721579433536,0.07568252,3498.1,3497.8,7.25]
[1721579433702,3.82183661,3498.3,3497.8,7.25]
[1721579433893,0.07568252,3498.0,3497.8,7.25]
[1721579434099,4.41682305,3498.3,3497.6,24.92589]
[1721579434332,0.07568252,3497.9,3497.6,24.92589]
[1721579434506,2.85854,3498.3,3497.6,24.92589]
[1721579434714,0.07568252,3497.8,3497.6,24.92589]
[1721579434923,2.85854,3498.3,3497.6,24.92589]
[1721579435316,0.07568252,3498.2,3497.6,24.92589]
[1721579436527,2.85879,3498.0,3497.6,19.73]
[1721579436912,2.85879,3498.0,3497.2,9.68920612]
[1721579436913,2.49110342,3497.9,3497.2,7.25000612]
[1721579437274,2.8591,3497.6,3497.2,7.25000612]
[1721579437407,0.55,3497.5,3497.2,7.25000612]
[1721579437737,2.93479993,3497.4,3497.2,7.25000612]
[1721579437914,3.62868057,3497.4,3497.2,7.25000612]
[1721579438864,0.55,3497.3,3497.2,7.25000612]
[1721579439015,0.62535583,3497.3,3497.2,6.12e-06]
[1721579439345,3.48469583,3497.3,3497.2,6.12e-06]
[1721579439549,6.48469583,3497.3,3497.2,6.12e-06]
[1721579439857,7.47859006,3497.3,3497.2,6.12e-06]
[1721579441048,4.61925006,3497.3,3497.2,6.12e-06]
[1721579441219,1.61925006,3497.3,3497.2,6.12e-06]
[1721579441820,7.47859006,3497.3,3497.2,6.12e-06]
[1721579442630,10.19281093,3497.3,3497.2,6.12e-06]
[1721579443953,7.33347093,3497.3,3497.2,6.12e-06]
[1721579444517,4.91797093,3497.3,3497.2,6.12e-06]
[1721579444759,0.9240767,3497.3,3497.2,6.12e-06]
[1721579444936,0.3740767,3497.3,3497.2,6.12e-06]
[1721579445347,0.07535583,3497.3,3497.2,6.12e-06]
[1721579445732,6.15759889,3497.9,3497.2,6.12e-06]
[1721579445936,0.07520339,3497.3,3497.2,6.12e-06]
[1721579446137,3.0,3497.7,3497.2,6.12e-06]
[1721579446420,0.91576689,3497.6,3497.2,6.12e-06]
[1721579446626,0.07520339,3497.5,3497.2,6.12e-06]
[1721579447048,6.15761889,3497.9,3497.2,6.12e-06]
[1721579447261,0.62524297,3497.8,3497.2,6.12e-06]
[1721579449829,2.85903,3497.7,3497.2,6.12e-06]
[1721579450044,3.07523564,3497.6,3497.2,6.12e-06]
[1721579450241,0.07523564,3497.6,3497.2,6.12e-06]
[1721579451175,3.40924,3497.5,3497.2,6.12e-06]
[1721579451567,2.85929,3497.4,3497.2,6.12e-06]
[1721579451869,3.0,3497.3,3497.2,6.12e-06]
[1721579452043,3.64845989,3497.3,3497.2,6.12e-06]
[1721579452244,3.72376883,3497.3,3497.2,6.12e-06]
[1721579452457,0.07530894,3497.3,3497.2,6.12e-06]
[1721579452631,3.0,3497.3,3497.2,6.12e-06]
[1721579452831,0.07528254,3497.3,3497.2,6.12e-06]
[1721579453051,3.29872889,3497.9,3497.2,6.12e-06]
[1721579453273,0.62528254,3497.8,3497.2,6.12e-06]
[1721579453989,0.62528254,3497.8,3497.3,2.4961]
[1721579454156,1.29423963,3497.8,3497.2,6.12e-06]
[1721579454342,0.62528254,3497.8,3497.2,6.12e-06]
[1721579454546,6.48422254,3497.8,3497.2,6.12e-06]
[1721579454747,2.85911,3497.6,3497.2,6.12e-06]
[1721579455149,0.07533825,3497.5,3497.2,6.12e-06]
[1721579455455,3.15270483,3497.4,3497.2,6.12e-06]
[1721579455774,2.85934,3497.3,3497.2,6.12e-06]
[1721579456093,2.93467825,3497.3,3497.2,6.12e-06]
[1721579458069,6.34401825,3497.3,3497.2,6.12e-06]
[1721579458273,9.34401825,3497.3,3497.2,6.12e-06]
[1721579458457,10.6531862,3497.3,3497.2,6.12e-06]
[1721579459485,10.95167989,3497.3,3497.2,6.12e-06]
[1721579463702,14.40600633,3497.3,3497.2,6.12e-06]
[1721579463857,19.51534633,3497.3,3497.2,6.12e-06]
[1721579464063,19.81283955,3497.3,3497.2,6.12e-06]
[1721579464663,16.95349955,3497.3,3497.2,6.12e-06]
[1721579465501,16.06101989,3497.3,3497.2,6.12e-06]
[1721579466378,16.95224806,3497.3,3497.2,6.12e-06]
[1721579467888,17.25099278,3497.3,3497.2,6.12e-06]
[1721579468995,20.11033278,3497.3,3497.2,6.12e-06]
[1721579469193,19.27035989,3497.3,3497.2,6.12e-06]
[1721579469596,30.65893789,3497.3,3497.2,6.12e-06]
[1721579469817,23.10070189,3497.3,3497.2,6.12e-06]
[1721579470824,19.27035989,3497.3,3497.2,6.12e-06]
[1721579470990,17.89564857,3497.3,3497.2,6.12e-06]
[1721579471200,17.59890403,3497.3,3497.2,6.12e-06]
[1721579471826,16.41101989,3497.3,3497.2,6.12e-06]
[1721579472522,15.34889315,3497.3,3497.2,6.12e-06]
[1721579472727,7.40167989,3497.3,3497.2,6.12e-06]
[1721579473041,6.09251194,3497.3,3497.2,6.12e-06]
[1721579474290,12.5458828,3497.3,3497.2,6.12e-06]
[1721579474513,11.95185194,3497.3,3497.2,6.12e-06]
[1721579474724,12.50185194,3497.3,3497.2,6.12e-06]
[1721579475298,13.3927828,3497.3,3497.2,6.12e-06]
[1721579475501,14.91011799,3497.3,3497.2,6.12e-06]
[1721579475811,16.87852713,3497.3,3497.2,6.12e-06]
[1721579476016,18.36344463,3497.3,3497.2,6.12e-06]
[1721579476205,17.22852713,3497.3,3497.2,6.12e-06]
[1721579477421,20.13946713,3497.3,3497.2,6.12e-06]
[1721579478693,19.91066713,3497.3,3497.2,6.12e-06]
[1721579479040,2.86073,3495.6,3495.5,9.6356]
[1721579479240,5.72146,3495.6,3495.5,2.3856]
[1721579479542,8.79621025,3495.6,3495.5,2.3856]
[1721579479854,9.34621025,3495.6,3495.5,2.3856]
[1721579480135,6.48548025,3495.6,3495.5,2.3856]
[1721579480828,3.07475025,3495.6,3495.5,2.3856]
[1721579485149,0.07475025,3495.6,3495.5,2.3856]
[1721579485640,3.0,3495.6,3495.5,2.3856]
[1721579485814,3.07471061,3495.6,3495.5,2.3856]
[1721579486021,5.93544061,3495.6,3495.5,2.3856]
[1721579486224,2.86105,3495.3,3495.2,2.3856]
[1721579486607,2.93574154,3495.3,3495.2,2.3856]
[1721579487132,5.93574154,3495.3,3495.2,2.3856]
[1721579488212,3.07469154,3495.3,3495.2,2.3856]
[1721579488412,0.07469154,3495.3,3495.2,2.3856]
[1721579488614,3.07469154,3495.3,3495.2,2.6394138]
[1721579488840,0.07469154,3495.3,3495.2,2.6394138]
[1721579489009,0.07469154,3495.3,3495.2,5.55768879]
[1721579489205,2.86011,3496.4,3495.5,2.3856]
[1721579489708,2.86011,3496.4,3495.6,2.3856]
[1721579489910,0.07463286,3496.3,3495.6,2.3856]
[1721579490755,0.07463286,3496.3,3495.6,2.86072]
[1721579490909,0.07463286,3496.3,3495.8,2.3856]
[1721579491122,2.85993,3496.6,3495.8,2.3856]
[1721579491326,0.07473556,3496.2,3495.8,2.3856]
[1721579491664,0.07474437,3496.1,3495.8,2.3856]
[1721579492028,2.86049,3495.9,3495.8,2.3856]
[1721579492282,5.79572583,3495.9,3495.8,2.3856]
[1721579492465,5.79572583,3495.9,3495.3,7.25]
[1721579492466,2.86084,3495.5,3495.3,9.6356]
[1721579492642,2.8609,3495.4,3495.3,2.3856]
[1721579492968,2.86102,3495.3,3495.0,2.3856]
[1721579493652,0.0748588,3495.2,3495.0,2.3856]
[1721579493967,2.86102,3495.3,3495.0,2.3856]
[1721579494466,0.0748588,3495.2,3495.0,2.3856]
[1721579494671,2.86102,3495.3,3495.0,2.3856]
[1721579494833,0.0748588,3495.2,3495.0,2.3856]
[1721579495172,3.0,3495.4,3495.0,2.3856]
[1721579495366,3.0,3495.3,3495.0,2.3856]
[1721579495574,3.07472673,3495.3,3495.0,2.3856]
[1721579495773,0.07472673,3495.3,3495.0,2.3856]
[1721579496132,2.93571673,3495.3,3495.0,2.3856]
[1721579497345,2.86106,3495.2,3495.0,2.3856]
[1721579497558,9.60178867,3495.2,3495.0,2.3856]
[1721579497743,10.15178867,3495.2,3495.0,2.3856]
[1721579497946,10.22638188,3495.2,3495.0,2.3856]
[1721579498276,10.22638188,3495.2,3494.7,2.4457]
[1721579501166,7.36532188,3495.2,3494.7,2.4457]
[1721579501370,3.07459321,3495.2,3494.7,2.4457]
[1721579501634,3.07459321,3495.2,3495.1,2.411738]
[1721579501858,0.07459321,3495.2,3495.1,2.411738]
[1721579502058,5.86106,3495.2,3495.1,2.411738]
[1721579502229,5.93560773,3495.2,3495.1,2.411738]
[1721579503760,6.87466618,3495.2,3495.1,0.152538]
[1721579503959,9.73572618,3495.2,3495.1,0.152538]
[1721579505146,10.28572618,3495.2,3495.1,0.152538]
[1721579506036,10.58375501,3495.2,3495.1,0.152538]
[1721579508199,7.72269501,3495.2,3495.1,0.152538]
[1721579508495,6.78363656,3495.2,3495.1,0.152538]
[1721579508659,3.37257656,3495.2,3495.1,0.152538]
[1721579508856,0.07454773,3495.2,3495.1,0.152538]
[1721579509104,5.86096,3495.4,3495.1,0.152538]
[1721579509105,3.0,3495.4,3495.1,0.152538]
[1721579509310,1.19022407,3495.8,3495.2,2.4568]
[1721579509311,0.07453893,3495.3,3495.2,2.4568]
[1721579509469,0.29924397,3495.8,3495.2,2.4568]
[1721579509784,0.07453893,3495.7,3495.3,2.4568]
[1721579510307,2.86042,3496.0,3495.3,2.4568]
[1721579510467,0.07465486,3495.9,3495.3,2.4568]
[1721579510662,0.07465486,3495.9,3495.3,3.0038458]
[1721579510865,0.07465486,3495.9,3495.3,2.4568]
[1721579511264,3.0,3495.9,3495.3,2.4568]
[1721579511500,2.93529486,3495.8,3495.3,2.4568]
[1721579512175,2.86066,3495.7,3495.3,2.4568]
[1721579512805,0.07465486,3495.6,3495.3,2.4568]
[1721579514106,3.41082,3495.5,3495.3,2.4568]
[1721579514292,0.07475465,3495.4,3495.3,2.4568]
[1721579515586,0.29816947,3495.7,3495.3,2.4568]
[1721579515786,3.0,3495.7,3495.3,2.4568]
[1721579515986,0.0746798,3495.6,3495.3,2.4568]
[1721579516989,2.9354298,3495.6,3495.3,2.4568]
[1721579517189,2.86085,3495.5,3495.3,2.4568]
[1721579517389,2.86104,3495.3,3495.1,0.152538]
[1721579517896,0.0746754,3495.2,3495.1,0.152538]
[1721579518193,2.86104,3495.3,3495.1,0.152538]
[1721579518404,0.0746754,3495.2,3495.1,0.152538]
[1721579518901,2.86104,3495.3,3495.1,0.152538]
[1721579519083,3.89653224,3495.2,3495.1,0.152538]
[1721579519411,4.49051897,3495.2,3495.1,0.152538]
[1721579519601,3.89653224,3495.2,3495.1,0.152538]
[1721579520214,7.49238528,3495.2,3495.1,0.152538]
[1721579520516,7.49258532,3495.2,3495.1,0.152538]
[1721579521021,7.08178848,3495.2,3495.1,0.152538]
[1721579521224,5.9357354,3495.2,3495.1,0.152538]
[1721579521733,6.83032824,3495.2,3495.1,0.152538]
[1721579521890,3.96923173,3495.2,3495.1,0.152538]
[1721579522085,3.37298131,3495.2,3495.1,0.152538]
[1721579522329,0.37298131,3495.2,3495.1,2.451338]
[1721579522525,0.0746754,3495.2,3495.1,2.451338]
[1721579522686,0.59625042,3495.5,3495.1,2.451338]
[1721579523086,0.07208887,3495.4,3495.1,2.9826088]
[1721579523312,0.07208887,3495.4,3495.2,2.2988]
[1721579523587,0.59625042,3495.7,3495.2,2.2988]
[1721579523989,1.18931861,3495.9,3495.2,2.2988]
[1721579523990,0.07208887,3495.6,3495.2,2.2988]
[1721579524387,0.89458893,3495.9,3495.2,2.2988]
[1721579524596,0.59625042,3496.0,3495.5,2.2988]
[1721579524816,0.59625042,3496.1,3495.5,2.2988]
[1721579525402,0.07220921,3496.0,3495.5,2.2988]
[1721579526902,3.59625042,3496.2,3495.5,2.2988]
[1721579527326,0.07230163,3496.1,3495.5,2.2988]
[1721579527695,0.07230163,3496.1,3495.6,2.86073]
[1721579527936,0.07230163,3496.1,3495.7,2.2988]
[1721579528234,0.07230163,3496.1,3495.8,2.2988]
[1721579528589,0.59625042,3496.4,3495.9,2.2988]
[1721579528792,0.29924518,3496.5,3496.1,2.2988]
[1721579531358,3.45617042,3496.6,3496.1,2.2988]
[1721579531512,1.06081541,3496.5,3496.1,2.2988]
[1721579532006,3.92085541,3496.5,3496.1,2.2988]
[1721579532512,0.46456499,3496.5,3496.1,2.2988]
[1721579532715,0.59625042,3496.6,3496.1,2.2988]
[1721579533131,3.45613042,3496.7,3496.1,2.2988]
[1721579533439,2.85988,3496.7,3496.1,2.2988]
[1721579533649,3.45613042,3496.7,3496.1,2.2988]
[1721579533813,0.59625042,3496.7,3496.1,2.2988]
[1721579534017,3.0,3496.7,3496.1,2.2988]
[1721579534212,6.45609042,3496.7,3496.1,2.2988]
[1721579534415,5.85984,3496.7,3496.1,2.2988]
[1721579536230,6.91035599,3496.7,3496.1,2.2988]
[1721579537250,3.0,3496.7,3496.1,2.2988]
[1721579537417,0.07246887,3496.6,3496.1,2.2988]
[1721579538456,2.86,3496.5,3496.1,2.2988]
[1721579538740,2.86011,3496.4,3496.1,2.2988]
[1721579538943,2.93246447,3496.5,3496.1,2.2988]
[1721579539154,1.05780443,3496.5,3496.1,2.2988]
[1721579539316,2.86009,3496.4,3496.1,2.2988]
[1721579539649,2.93258087,3496.4,3496.1,2.2988]
[1721579539820,2.86016,3496.3,3496.1,2.2988]
[1721579540021,3.91785443,3496.5,3496.1,2.2988]
[1721579540237,0.07249087,3496.2,3496.1,2.2988]
[1721579540734,2.93273087,3496.2,3496.1,2.2988]
[1721579540921,3.54530153,3496.2,3495.7,19.73]
[1721579541128,2.86034,3496.1,3495.7,22.0938]
[1721579541713,0.07246007,3496.0,3495.7,22.0938]
[1721579542412,3.0,3496.5,3495.8,2.3638]
[1721579542606,0.07243807,3495.9,3495.8,2.3638]
[1721579542812,3.0,3496.5,3495.8,2.3638]
[1721579543313,0.07243807,3496.4,3495.8,2.3638]
[1721579543770,2.93252807,3496.4,3495.8,2.3638]
[1721579543930,2.86034,3496.1,3495.8,2.3638]
[1721579544528,0.07243807,3496.0,3495.8,2.3638]
[1721579545226,2.86025,3496.2,3495.8,2.3638]
[1721579545760,2.86033,3496.1,3495.8,2.3638]
[1721579545938,2.93276807,3496.1,3495.8,2.3638]
[1721579546334,0.07243807,3496.1,3495.6,7.25]
[1721579546538,2.86058,3495.8,3495.6,7.25]
[1721579546743,0.0724366,3495.7,3495.6,7.25]
[1721579546970,2.9330866,3495.7,3495.6,7.25]
[1721579547126,2.86065,3495.7,3495.6,7.25]
[1721579547326,2.93303233,3495.7,3495.6,7.25]
[1721579548470,3.57200961,3495.7,3495.6,7.25]
[1721579548668,2.86074,3495.6,3495.4,2.3638]
[1721579549028,0.07232218,3495.5,3495.4,2.3638]
[1721579552232,2.86057,3495.8,3495.4,2.3638]
[1721579552434,0.07231778,3495.5,3495.4,2.3638]
[1721579552666,2.86066,3495.7,3495.4,2.3638]
[1721579552857,0.07231778,3495.5,3495.4,2.3638]
[1721579553058,2.86066,3495.7,3495.4,2.3638]